Workbook

Sheet 1STJUNE13 DEPOT
A1: EX DEPOT PRICE 1.6.13
D2: PRIME-GRADES | I2: OFF-GRADES
D3: 67-01/67BER01/67GER01 | E3: 67-11 | F3: 57GER01 | G3: 57GMR01 | H3: 67GER01F | I3: 67-03/67BER03/67GER03 | J3: 57GMR03
A5: MUMBAI /PANVEL | B5: CRDT. | C5: BASIC | D5: 67368 | E5: =D5+500 -> 67868 | F5: =D5+3000 -> 70368 | G5: =D5+1500 -> 68868 | H5: =D5+300 -> 67668 | I5: =D5-1000 -> 66368 | J5: =D5+500 -> 67868
C6: EX.DUTY 12.36% | D6: =SUM(D5*12.36%) -> 8326.6848 | E6: 8388.4848 | F6: 8697.4848 | G6: 8512.0848 | H6: 8363.7648 | I6: 8203.0848 | J6: 8388.4848
C7: TRADE DISC. | D7: 0 | E7: 0 | F7: 0 | G7: 0 | H7: 0 | I7: 0 | J7: 0
C8: EX-GODOWN | D8: =D5+D6 -> 75694.6848 | E8: 76256.4848 | F8: 79065.4848 | G8: 77380.0848 | H8: 76031.7648 | I8: 74571.0848 | J8: 76256.4848
B9: CASH | C9: CASH.DISC | D9: 500 | E9: =D9 -> 500 | F9: 500 | G9: 500 | H9: 500 | I9: 500 | J9: 500
C10: EX-GODOWN | D10: =D8-D9 -> 75194.6848 | E10: 75756.4848 | F10: 78565.4848 | G10: 76880.0848 | H10: 75531.7648 | I10: 74071.0848 | J10: 75756.4848
A12: Daman | B12: CRDT. | C12: BASIC | D12: =D5-92 -> 67276 | E12: =D12+500 -> 67776 | F12: =D12+3000 -> 70276 | G12: =D12+1500 -> 68776 | H12: =D12+300 -> 67576 | I12: =D12-1000 -> 66276 | J12: =D12+500 -> 67776
C13: EX.DUTY 12.36% | D13: =SUM(D12*12.36%) -> 8315.3136 | E13: 8377.1136 | F13: 8686.1136 | G13: 8500.7136 | H13: 8352.3936 | I13: 8191.7136 | J13: 8377.1136
C14: TRADE DISC. | D14: 0 | E14: 0 | F14: 0 | G14: 0 | H14: 0 | I14: 0 | J14: 0
C15: EX-GODOWN | D15: =D12+D13 -> 75591.3136 | E15: 76153.1136 | F15: 78962.1136 | G15: 77276.7136 | H15: 75928.3936 | I15: 74467.7136 | J15: 76153.1136
B16: CASH | C16: CASH.DISC | D16: =D9 -> 500 | E16: =E9 -> 500 | F16: 500 | G16: 500 | H16: 500 | I16: 500 | J16: 500
C17: EX-GODOWN | D17: =D15-D16 -> 75091.3136 | E17: 75653.1136 | F17: 78462.1136 | G17: 76776.7136 | H17: 75428.3936 | I17: 73967.7136 | J17: 75653.1136
A19: Jalgaon | B19: CRDT. | C19: BASIC | D19: =D5+91 -> 67459 | E19: =D19+500 -> 67959 | F19: =D19+3000 -> 70459 | G19: =D19+1500 -> 68959 | H19: =D19+300 -> 67759 | I19: =D19-1000 -> 66459 | J19: =D19+500 -> 67959
C20: EX.DUTY 12.36% | D20: =SUM(D19*12.36%) -> 8337.9324 | E20: 8399.7324 | F20: 8708.7324 | G20: 8523.3324 | H20: 8375.0124 | I20: 8214.3324 | J20: 8399.7324
C21: TRADE DISC. | D21: 0 | E21: 0 | F21: 0 | G21: 0 | H21: 0 | I21: 0 | J21: 0
C22: EX-GODOWN | D22: =D19+D20 -> 75796.9324 | E22: 76358.7324 | F22: 79167.7324 | G22: 77482.3324 | H22: 76134.0124 | I22: 74673.3324 | J22: 76358.7324
B23: CASH | C23: CASH.DISC | D23: =D9 -> 500 | E23: =E9 -> 500 | F23: 500 | G23: 500 | H23: 500 | I23: 500 | J23: 500
C24: EX-GODOWN | D24: =D22-D23 -> 75296.9324 | E24: 75858.7324 | F24: 78667.7324 | G24: 76982.3324 | H24: 75634.0124 | I24: 74173.3324 | J24: 75858.7324
A26: Pune | B26: CRDT. | C26: BASIC | D26: =D5+570 -> 67938 | E26: =D26+500 -> 68438 | F26: =D26+3000 -> 70938 | G26: =D26+1500 -> 69438 | H26: =D26+300 -> 68238 | I26: =D26-1000 -> 66938 | J26: =D26+500 -> 68438
C27: EX.DUTY 12.36% | D27: =SUM(D26*12.36%) -> 8397.1368 | E27: 8458.9368 | F27: 8767.9368 | G27: 8582.5368 | H27: 8434.2168 | I27: 8273.5368 | J27: 8458.9368
C28: TRADE DISC. | D28: 0 | E28: 0 | F28: 0 | G28: 0 | H28: 0 | I28: 0 | J28: 0
C29: EX-GODOWN | D29: =D26+D27 -> 76335.1368 | E29: 76896.9368 | F29: 79705.9368 | G29: 78020.5368 | H29: 76672.2168 | I29: 75211.5368 | J29: 76896.9368
B30: CASH | C30: CASH.DISC | D30: =D9 -> 500 | E30: =E9 -> 500 | F30: 500 | G30: 500 | H30: 500 | I30: 500 | J30: 500
C31: EX-GODOWN | D31: =D29-D30 -> 75835.1368 | E31: 76396.9368 | F31: 79205.9368 | G31: 77520.5368 | H31: 76172.2168 | I31: 74711.5368 | J31: 76396.9368
A33: Silvassa | B33: CRDT. | C33: BASIC | D33: =D5-55 -> 67313 | E33: =D33+500 -> 67813 | F33: =D33+3000 -> 70313 | G33: =D33+1500 -> 68813 | H33: =D33+300 -> 67613 | I33: =D33-1000 -> 66313 | J33: =D33+500 -> 67813
C34: EX.DUTY 12.36% | D34: =SUM(D33*12.36%) -> 8319.8868 | E34: 8381.6868 | F34: 8690.6868 | G34: 8505.2868 | H34: 8356.9668 | I34: 8196.2868 | J34: 8381.6868
C35: TRADE DISC. | D35: 0 | E35: 0 | F35: 0 | G35: 0 | H35: 0 | I35: 0 | J35: 0
C36: EX-GODOWN | D36: =D33+D34 -> 75632.8868 | E36: 76194.6868 | F36: 79003.6868 | G36: 77318.2868 | H36: 75969.9668 | I36: 74509.2868 | J36: 76194.6868
B37: CASH | C37: CASH.DISC | D37: =D9 -> 500 | E37: =E9 -> 500 | F37: 500 | G37: 500 | H37: 500 | I37: 500 | J37: 500
C38: EX-GODOWN | D38: =D36-D37 -> 75132.8868 | E38: 75694.6868 | F38: 78503.6868 | G38: 76818.2868 | H38: 75469.9668 | I38: 74009.2868 | J38: 75694.6868
A40: Hyderabad | B40: CRDT. | C40: BASIC | D40: =D5+1457 -> 68825 | E40: =D40+500 -> 69325 | F40: =D40+3000 -> 71825 | G40: =D40+1500 -> 70325 | H40: =D40+300 -> 69125 | I40: =D40-1000 -> 67825 | J40: =D40+500 -> 69325
C41: EX.DUTY 12.36% | D41: =SUM(D40*12.36%) -> 8506.77 | E41: 8568.57 | F41: 8877.57 | G41: 8692.17 | H41: 8543.85 | I41: 8383.17 | J41: 8568.57
C42: TRADE DISC. | D42: 0 | E42: 0 | F42: 0 | G42: 0 | H42: 0 | I42: 0 | J42: 0
C43: EX-GODOWN | D43: =D40+D41 -> 77331.77 | E43: 77893.57 | F43: 80702.57 | G43: 79017.17 | H43: 77668.85 | I43: 76208.17 | J43: 77893.57
B44: CASH | C44: CASH.DISC | D44: =D9 -> 500 | E44: =E9 -> 500 | F44: 500 | G44: 500 | H44: 500 | I44: 500 | J44: 500
C45: EX-GODOWN | D45: =D43-D44 -> 76831.77 | E45: 77393.57 | F45: 80202.57 | G45: 78517.17 | H45: 77168.85 | I45: 75708.17 | J45: 77393.57
A47: Salem | B47: CRDT. | C47: BASIC | D47: =D5+555 -> 67923 | E47: =D47+2500 -> 70423 | F47: =D47+5000 -> 72923 | G47: =D47+3500 -> 71423 | H47: =D47+2300 -> 70223 | I47: =D47-1000 -> 66923 | J47: =D47+2500 -> 70423
C48: EX.DUTY 12.36% | D48: =SUM(D47*12.36%) -> 8395.2828 | E48: 8704.2828 | F48: 9013.2828 | G48: 8827.8828 | H48: 8679.5628 | I48: 8271.6828 | J48: 8704.2828
C49: TRADE DISC. | D49: =D9 -> 500 | E49: =E9 -> 500 | F49: 500 | G49: 500 | H49: 500 | I49: 500 | J49: 500
C50: EX-GODOWN | D50: =D47+D48 -> 76318.2828 | E50: 79127.2828 | F50: 81936.2828 | G50: 80250.8828 | H50: 78902.5628 | I50: 75194.6828 | J50: 79127.2828
B51: CASH | C51: CASH.DISC | D51: =D9 -> 500 | E51: =E9 -> 500 | F51: 500 | G51: 500 | H51: 500 | I51: 500 | J51: 500
C52: EX-GODOWN | D52: =D50-D51 -> 75818.2828 | E52: 78627.2828 | F52: 81436.2828 | G52: 79750.8828 | H52: 78402.5628 | I52: 74694.6828 | J52: 78627.2828
A54: Dehradun | B54: CRDT. | C54: BASIC | D54: =D5+2489 -> 69857 | E54: =D54+500 -> 70357 | F54: =D54+3000 -> 72857 | G54: =D54+1500 -> 71357 | H54: =D54+300 -> 70157 | I54: =D54-1000 -> 68857 | J54: =D54+500 -> 70357
C55: EX.DUTY 12.36% | D55: =SUM(D54*12.36%) -> 8634.3252 | E55: 8696.1252 | F55: 9005.1252 | G55: 8819.7252 | H55: 8671.4052 | I55: 8510.7252 | J55: 8696.1252
C56: TRADE DISC. | D56: 0 | E56: 0 | F56: 0 | G56: 0 | H56: 0 | I56: 0 | J56: 0
C57: EX-GODOWN | D57: =D54+D55 -> 78491.3252 | E57: 79053.1252 | F57: 81862.1252 | G57: 80176.7252 | H57: 78828.4052 | I57: 77367.7252 | J57: 79053.1252
B58: CASH | C58: CASH.DISC | D58: =D9 -> 500 | E58: =E9 -> 500 | F58: 500 | G58: 500 | H58: 500 | I58: 500 | J58: 500
C59: EX-GODOWN | D59: =D57-D58 -> 77991.3252 | E59: 78553.1252 | F59: 81362.1252 | G59: 79676.7252 | H59: 78328.4052 | I59: 76867.7252 | J59: 78553.1252
A61: JAIPUR | B61: CRDT. | C61: BASIC | D61: =D5+1071 -> 68439 | E61: =D61+500 -> 68939 | F61: =D61+3000 -> 71439 | G61: =D61+1500 -> 69939 | H61: =D61+300 -> 68739 | I61: =D61-1000 -> 67439 | J61: =D61+500 -> 68939
C62: EX.DUTY 12.36% | D62: =SUM(D61*12.36%) -> 8459.0604 | E62: 8520.8604 | F62: 8829.8604 | G62: 8644.4604 | H62: 8496.1404 | I62: 8335.4604 | J62: 8520.8604
C63: TRADE DISC. | D63: 0 | E63: 0 | F63: 0 | G63: 0 | H63: 0 | I63: 0 | J63: 0
C64: EX-GODOWN | D64: =D61+D62 -> 76898.0604 | E64: 77459.8604 | F64: 80268.8604 | G64: 78583.4604 | H64: 77235.1404 | I64: 75774.4604 | J64: 77459.8604
B65: CASH | C65: CASH.DISC | D65: =D16 -> 500 | E65: =E16 -> 500 | F65: 500 | G65: 500 | H65: 500 | I65: 500 | J65: 500
C66: EX-GODOWN | D66: =D64-D65 -> 76398.0604 | E66: 76959.8604 | F66: 79768.8604 | G66: 78083.4604 | H66: 76735.1404 | I66: 75274.4604 | J66: 76959.8604

Sheet 1ST JUNE13 PL
A1: EX WORKS PRICE 1.6.13
A2: EX-WORKS - HAZIRA / BARODA / GANDHAR location disc in MAHARASHTRA/AP/KRNTKA/KERLA/TN.
C3: CREDIT | J3: CASH
A4: GRADE | B4: NET | C4: LESS | D4: EXCISE | E4: CST | F4: LANDED | H4: NET | I4: LESS | J4: Less | K4: EXCISE | L4: CST | M4: LANDED
B5: BASIC | C5: LOC DISC | D5: 0.1236 | E5: 0.02 | F5: EX-PLANT | H5: BASIC | I5: LOC DISC | J5: Cach Disc | K5: 0.1236 | L5: =E5 -> 0.02 | M5: EX-PLANT
A6: 67-01/67BER01/67GER01 | B6: 66000 | C6: 500 | D6: =(B6-C6)*$D$11 -> 8095.8 | E6: =(B6-C6+D6)*$E$11 -> 1471.916 | F6: =(B6-C6)+D6+E6 -> 75067.716 | H6: =B6 -> 66000 | I6: 500 | J6: 500 | K6: =(H6-I6-J6)*$D$11 -> 8034 | L6: =(H6-I6-J6+K6)*$E$11 -> 1460.68 | M6: =H6-I6-J6+K6+L6 -> 74494.68
A7: 67-11 | B7: =B6+500 -> 66500 | C7: 500 | D7: 8157.6 | E7: 1483.152 | F7: 75640.752 | H7: 66500 | I7: 500 | J7: 500 | K7: =(H7-I7-J7)*$D$11 -> 8095.8 | L7: 1471.916 | M7: 75067.716
A8: 67-03/67BER03/67GER03 | B8: =B6-1000 -> 65000 | C8: 500 | D8: 7972.2 | E8: 1449.444 | F8: 73921.644 | H8: 65000 | I8: 500 | J8: 500 | K8: 7910.4 | L8: 1438.208 | M8: 73348.608
A10: 57GMR01 | B10: =B6+1500 -> 67500 | C10: 500 | D10: 8281.2 | E10: 1505.624 | F10: 76786.824 | H10: 67500 | I10: 500 | J10: 500 | K10: 8219.4 | L10: 1494.388 | M10: 76213.788
A11: 57GER01 | B11: =B6+3000 -> 69000 | C11: 500 | D11: 8466.6 | E11: 1539.332 | F11: 78505.932 | H11: 69000 | I11: 500 | J11: 500 | K11: 8404.8 | L11: 1528.096 | M11: 77932.896
A12: 57GMR03 | B12: =B6+500 -> 66500 | C12: 500 | D12: 8157.6 | E12: 1483.152 | F12: 75640.752 | H12: 66500 | I12: 500 | J12: 500 | K12: 8095.8 | L12: 1471.916 | M12: 75067.716
A13: 67GER01F | B13: =B6+300 -> 66300 | C13: 500 | D13: =(B13-C13)*$D$11 -> 8132.88 | E13: =(B13-C13+D13)*$E$11 -> 1478.6576 | F13: =(B13-C13)+D13+E13 -> 75411.5376 | H13: =H6+300 -> 66300 | I13: 500 | J13: 500 | K13: =(H13-I13-J13)*$D$11 -> 8071.08 | L13: =(H13-I13-J13+K13)*$E$11 -> 1467.4216 | M13: =H13-I13-J13+K13+L13 -> 74838.5016
A15: PLEASE NOTE THE FOLLOWING :
A16: 1) GRADE SPECIFIC DISC OF RS.1500/-MT FOR THE GRADES K 57GER01.
A17: 2) PLEASE NOTE ITS MANDATORY TO HAVE SERVICE TAX NO W.E.F 01.06.08 FOR DISPATCHES FROM RIL
A18: 3) CUSTOMERS HAVE TO SUBMIT ORIGINAL 'C' FORM IN ADVANCE AGAINST PURCHASES MADE FROM
A19: RELIANCE INDS. LTD. | C19: 3A) UNLOADING CHARGES TO BE BORNE BY CUSTOMER IN CASE OF EX WORK SALE.
A20: 4) SALES TAX / VAT AS APPLICABLE RATES WILL BE EXTRA FOR HAZIRA , GANDHAR & GODOWN SALES.
A21: 5) OCTROI & OTHER LOCAL LEVIES ARE TO BE BORNE BY THE CUSTOMER.
A22: 6) LOADING CHARGES AND TRANSPORTATION FOR EX.GODOWN SALES TO BE BORNE BY CUSTOMER.
A23: 7) INTEREST FREE CREDIT DAYS HAVE BEEN REDUCED FROM 14 TO 10 DAYS.
A25: QUANTITY DISCOUNT | I25: TRANSPORTATION WEF 1ST MAY 13
A26: QTY(MT) | B26: 0 < 27 | C26: 27 < 54 | D26: 54 <99 | E26: 99<198 | F26: 198 > | I26: DESTINATION | K26: BD | L26: Hazira | M26: Gandhar
B27: 0 | C27: 100 | D27: 200 | E27: 300 | F27: 400 | I27: ALWAR - JAIPUR | K27: 2113 | L27: 2363 | M27: 2193
I28: AHEMADNAGAR | K28: 1849 | L28: 1437 | M28: 1803
A29: REGIONAL DISCOUNT : RIL-Ex- WORKS - Hazira , Baroda , Gandhar as under. | I29: BHAMBORI | K29: 1415 | L29: 1047 | M29: 1332
B30: K6701 | C30: 67BER01 | D30: 67GER01 | I30: BARODA | K30: 408 | L30: 548 | M30: 478
A31: Tamilnadu/Kerala | B31: 2000 | C31: 2000 | D31: 2000 | I31: BARSHI | K31: 2187 | L31: 1908 | M31: 2172
A32: Pondichery | B32: 2000 | C32: 2000 | D32: 2000 | I32: BHUJ | K32: 1263 | L32: 1263 | M32: 865
A33: Karnataka | B33: 1000 | C33: 1000 | D33: 1000 | I33: BOISAR | K33: 1263 | L33: 853 | M33: 1195
A34: Note: Above discounts would be applicable only on above pipe grades. | I34: DAMAN | K34: 731 | L34: 547 | M34: 748
B35: ( prime , nonprime n off grades ). | I35: DEHRADUN | K35: 2913 | L35: 3033 | M35: 3013
I36: GOA | K36: 2848 | L36: 2749 | M36: 2873
I37: GONDIA | K37: - | L37: 1869 | M37: 2039
A38: D.E. Prices for Ex Fact- Hazira , Baroda , Gandhar Complexes | I38: HALOL | K38: 409 | L38: 600 | M38: 505
A39: Location | B39: Type | C39: 67.01 | I39: HARIDWAR | K39: 2813 | L39: 2962 | M39: 2942
C40: 67GER01 | D40: 57GER01 | E40: 57GMR01 | F40: 67.11 | G40: 67GER01 F | I40: JALGAON | K40: 1518 | L40: 1135 | M40: 1334
A41: EX WORKS HZ , BC & GC. | B41: EOU-CT3/AIL | C41: =B6-3500 -> 62500 | D41: =B6-2000 -> 64000 | E41: =B6-2000 -> 64000 | F41: =B6-3000 -> 63000 | G41: =B6-3200 -> 62800 | I41: RAVER | K41: 1518 | L41: 1135 | M41: 1427
I42: JAMMU | K42: 3713 | L42: 3363 | M42: 3811
I43: MUMBAI | K43: 1345 | L43: 1173 | M43: 1343
I44: NALGONDA | K44: 2956 | L44: 2433 | M44: 2581
I45: NASHIK | K45: 1421 | L45: 1029 | M45: 1314
I46: NAGPUR | K46: 2119 | L46: 1774 | M46: 1974
I47: PHALTAN | K47: - | L47: 1943 | M47: -
I48: SANGLI | K48: 2194 | L48: 1953 | M48: 2163
I49: SATARA | K49: 2127 | L49: 1943 | M49: 2188
I50: SILVASSA | K50: 734 | L50: 548 | M50: 783
I51: SOLAPUR | K51: 2187 | L51: 1908 | M51: 2172
I52: TALASARI | K52: 1213 | L52: 695 | M52: 1113
I53: UMERGAON | K53: 738 | L53: 568 | M53: 701
I54: VASAI | K54: 1443 | L54: 1063 | M54: 1413
I55: UDMALPET | K55: 3963 | L55: 4023 | M55: 3863
A61: WISHING YOU EVERY SUCCESS AT ALL TIME.
A62: Thanks & Regards,;
A63: Anil Mistry M-7738006668
A64: (Manager - Sales_
A65: e-mail: anil_mistry@vipl.com

Sheet 1.6.13
X2: www.vipl.com
A4: Tel: +91-22-26824334 / 26824345 / 46 / 47. Fax: +91-22-26823662 E mail : vipl@vipl.com; info@vipl.com
A5: PRICES FOR RELIANCE INDS LTD. REON PVC w.e.f. 1ST JUNE - 2013 0600 AM : UPWARD REVISION.
A7: EX WORKS PRICE 1.6.13 | O7: EX DEPOT PRICE 1.6.13
A8: EX-WORKS - HAZIRA / BARODA / GANDHAR location disc in MAHARASHTRA/AP/KRNTKA/KERLA/TN. | R8: PRIME-GRADES | W8: OFF-GRADES
C9: CREDIT | J9: CASH | R9: 67-01/67BER01/67GER01 | S9: 67-11 | T9: 57GER01 | U9: 57GMR01 | V9: 67GER01F | W9: 67-03/67BER03/67GER03 | X9: 57GMR03
A10: GRADE | B10: NET | C10: LESS | D10: EXCISE | E10: CST | F10: LANDED | H10: NET | I10: LESS | J10: Less | K10: EXCISE | L10: CST | M10: LANDED
B11: BASIC | C11: LOC DISC | D11: 0.1236 | E11: 0.02 | F11: EX-PLANT | H11: BASIC | I11: LOC DISC | J11: Cach Disc | K11: 0.1236 | L11: =E11 -> 0.02 | M11: EX-PLANT | O11: MUMBAI /PANVEL | P11: CRDT. | Q11: BASIC | R11: 67368 | S11: =R11+500 -> 67868 | T11: =R11+3000 -> 70368 | U11: =R11+1500 -> 68868 | V11: =R11+300 -> 67668 | W11: =R11-1000 -> 66368 | X11: =R11+500 -> 67868
A12: 67-01/67BER01/67GER01 | B12: 66000 | C12: 500 | D12: =(B12-C12)*$D$11 -> 8095.8 | E12: =(B12-C12+D12)*$E$11 -> 1471.916 | F12: =(B12-C12)+D12+E12 -> 75067.716 | H12: =B12 -> 66000 | I12: 500 | J12: 500 | K12: =(H12-I12-J12)*$D$11 -> 8034 | L12: =(H12-I12-J12+K12)*$E$11 -> 1460.68 | M12: =H12-I12-J12+K12+L12 -> 74494.68 | Q12: EX.DUTY 12.36% | R12: =SUM(R11*12.36%) -> 8326.6848 | S12: 8388.4848 | T12: 8697.4848 | U12: 8512.0848 | V12: 8363.7648 | W12: 8203.0848 | X12: 8388.4848
A13: 67-11 | B13: =B12+500 -> 66500 | C13: 500 | D13: 8157.6 | E13: 1483.152 | F13: 75640.752 | H13: 66500 | I13: 500 | J13: 500 | K13: =(H13-I13-J13)*$D$11 -> 8095.8 | L13: 1471.916 | M13: 75067.716 | Q13: TRADE DISC. | R13: 0 | S13: 0 | T13: 0 | U13: 0 | V13: 0 | W13: 0 | X13: 0
A14: 67-03/67BER03/67GER03 | B14: =B12-1000 -> 65000 | C14: 500 | D14: 7972.2 | E14: 1449.444 | F14: 73921.644 | H14: 65000 | I14: 500 | J14: 500 | K14: 7910.4 | L14: 1438.208 | M14: 73348.608 | Q14: EX-GODOWN | R14: =R11+R12 -> 75694.6848 | S14: 76256.4848 | T14: 79065.4848 | U14: 77380.0848 | V14: 76031.7648 | W14: 74571.0848 | X14: 76256.4848
P15: CASH | Q15: CASH.DISC | R15: 500 | S15: =R15 -> 500 | T15: 500 | U15: 500 | V15: 500 | W15: 500 | X15: 500
A16: 57GMR01 | B16: =B12+1500 -> 67500 | C16: 500 | D16: 8281.2 | E16: 1505.624 | F16: 76786.824 | H16: 67500 | I16: 500 | J16: 500 | K16: 8219.4 | L16: 1494.388 | M16: 76213.788 | Q16: EX-GODOWN | R16: =R14-R15 -> 75194.6848 | S16: 75756.4848 | T16: 78565.4848 | U16: 76880.0848 | V16: 75531.7648 | W16: 74071.0848 | X16: 75756.4848
A17: 57GER01 | B17: =B12+3000 -> 69000 | C17: 500 | D17: 8466.6 | E17: 1539.332 | F17: 78505.932 | H17: 69000 | I17: 500 | J17: 500 | K17: 8404.8 | L17: 1528.096 | M17: 77932.896
A18: 57GMR03 | B18: =B12+500 -> 66500 | C18: 500 | D18: 8157.6 | E18: 1483.152 | F18: 75640.752 | H18: 66500 | I18: 500 | J18: 500 | K18: 8095.8 | L18: 1471.916 | M18: 75067.716 | O18: Daman | P18: CRDT. | Q18: BASIC | R18: =R11-92 -> 67276 | S18: =R18+500 -> 67776 | T18: =R18+3000 -> 70276 | U18: =R18+1500 -> 68776 | V18: =R18+300 -> 67576 | W18: =R18-1000 -> 66276 | X18: =R18+500 -> 67776
A19: 67GER01F | B19: =B12+300 -> 66300 | C19: 500 | D19: =(B19-C19)*$D$11 -> 8132.88 | E19: =(B19-C19+D19)*$E$11 -> 1478.6576 | F19: =(B19-C19)+D19+E19 -> 75411.5376 | H19: =H12+300 -> 66300 | I19: 500 | J19: 500 | K19: =(H19-I19-J19)*$D$11 -> 8071.08 | L19: =(H19-I19-J19+K19)*$E$11 -> 1467.4216 | M19: =H19-I19-J19+K19+L19 -> 74838.5016 | Q19: EX.DUTY 12.36% | R19: =SUM(R18*12.36%) -> 8315.3136 | S19: 8377.1136 | T19: 8686.1136 | U19: 8500.7136 | V19: 8352.3936 | W19: 8191.7136 | X19: 8377.1136
Q20: TRADE DISC. | R20: 0 | S20: 0 | T20: 0 | U20: 0 | V20: 0 | W20: 0 | X20: 0
A21: PLEASE NOTE THE FOLLOWING : | Q21: EX-GODOWN | R21: =R18+R19 -> 75591.3136 | S21: 76153.1136 | T21: 78962.1136 | U21: 77276.7136 | V21: 75928.3936 | W21: 74467.7136 | X21: 76153.1136
A22: 1) GRADE SPECIFIC DISC OF RS.1500/-MT FOR THE GRADES K 57GER01. | P22: CASH | Q22: CASH.DISC | R22: =R15 -> 500 | S22: =S15 -> 500 | T22: 500 | U22: 500 | V22: 500 | W22: 500 | X22: 500
A23: 2) PLEASE NOTE ITS MANDATORY TO HAVE SERVICE TAX NO W.E.F 01.06.08 FOR DISPATCHES FROM RIL | Q23: EX-GODOWN | R23: =R21-R22 -> 75091.3136 | S23: 75653.1136 | T23: 78462.1136 | U23: 76776.7136 | V23: 75428.3936 | W23: 73967.7136 | X23: 75653.1136
A24: 3) CUSTOMERS HAVE TO SUBMIT ORIGINAL 'C' FORM IN ADVANCE AGAINST PURCHASES MADE FROM
A25: RELIANCE INDS. LTD. | C25: 3A) UNLOADING CHARGES TO BE BORNE BY CUSTOMER IN CASE OF EX WORK SALE. | O25: Jalgaon | P25: CRDT. | Q25: BASIC | R25: =R11+91 -> 67459 | S25: =R25+500 -> 67959 | T25: =R25+3000 -> 70459 | U25: =R25+1500 -> 68959 | V25: =R25+300 -> 67759 | W25: =R25-1000 -> 66459 | X25: =R25+500 -> 67959
A26: 4) SALES TAX / VAT AS APPLICABLE RATES WILL BE EXTRA FOR HAZIRA , GANDHAR & GODOWN SALES. | Q26: EX.DUTY 12.36% | R26: =SUM(R25*12.36%) -> 8337.9324 | S26: 8399.7324 | T26: 8708.7324 | U26: 8523.3324 | V26: 8375.0124 | W26: 8214.3324 | X26: 8399.7324
A27: 5) OCTROI & OTHER LOCAL LEVIES ARE TO BE BORNE BY THE CUSTOMER. | Q27: TRADE DISC. | R27: 0 | S27: 0 | T27: 0 | U27: 0 | V27: 0 | W27: 0 | X27: 0
A28: 6) LOADING CHARGES AND TRANSPORTATION FOR EX.GODOWN SALES TO BE BORNE BY CUSTOMER. | Q28: EX-GODOWN | R28: =R25+R26 -> 75796.9324 | S28: 76358.7324 | T28: 79167.7324 | U28: 77482.3324 | V28: 76134.0124 | W28: 74673.3324 | X28: 76358.7324
A29: 7) INTEREST FREE CREDIT DAYS HAVE BEEN REDUCED FROM 14 TO 10 DAYS. | P29: CASH | Q29: CASH.DISC | R29: =R15 -> 500 | S29: =S15 -> 500 | T29: 500 | U29: 500 | V29: 500 | W29: 500 | X29: 500
Q30: EX-GODOWN | R30: =R28-R29 -> 75296.9324 | S30: 75858.7324 | T30: 78667.7324 | U30: 76982.3324 | V30: 75634.0124 | W30: 74173.3324 | X30: 75858.7324
A31: QUANTITY DISCOUNT | I31: TRANSPORTATION WEF 1ST MAY 13
A32: QTY(MT) | B32: 0 < 27 | C32: 27 < 54 | D32: 54 <99 | E32: 99<198 | F32: 198 > | I32: DESTINATION | K32: BD | L32: Hazira | M32: Gandhar | O32: Pune | P32: CRDT. | Q32: BASIC | R32: =R11+570 -> 67938 | S32: =R32+500 -> 68438 | T32: =R32+3000 -> 70938 | U32: =R32+1500 -> 69438 | V32: =R32+300 -> 68238 | W32: =R32-1000 -> 66938 | X32: =R32+500 -> 68438
B33: 0 | C33: 100 | D33: 200 | E33: 300 | F33: 400 | I33: ALWAR - JAIPUR | K33: 2113 | L33: 2363 | M33: 2193 | Q33: EX.DUTY 12.36% | R33: =SUM(R32*12.36%) -> 8397.1368 | S33: 8458.9368 | T33: 8767.9368 | U33: 8582.5368 | V33: 8434.2168 | W33: 8273.5368 | X33: 8458.9368
I34: AHEMADNAGAR | K34: 1849 | L34: 1437 | M34: 1803 | Q34: TRADE DISC. | R34: 0 | S34: 0 | T34: 0 | U34: 0 | V34: 0 | W34: 0 | X34: 0
A35: REGIONAL DISCOUNT : RIL-Ex- WORKS - Hazira , Baroda , Gandhar as under. | I35: BHAMBORI | K35: 1415 | L35: 1047 | M35: 1332 | Q35: EX-GODOWN | R35: =R32+R33 -> 76335.1368 | S35: 76896.9368 | T35: 79705.9368 | U35: 78020.5368 | V35: 76672.2168 | W35: 75211.5368 | X35: 76896.9368
B36: K6701 | C36: 67BER01 | D36: 67GER01 | I36: BARODA | K36: 408 | L36: 548 | M36: 478 | P36: CASH | Q36: CASH.DISC | R36: =R15 -> 500 | S36: =S15 -> 500 | T36: 500 | U36: 500 | V36: 500 | W36: 500 | X36: 500
A37: Tamilnadu/Kerala | B37: 2000 | C37: 2000 | D37: 2000 | I37: BARSHI | K37: 2187 | L37: 1908 | M37: 2172 | Q37: EX-GODOWN | R37: =R35-R36 -> 75835.1368 | S37: 76396.9368 | T37: 79205.9368 | U37: 77520.5368 | V37: 76172.2168 | W37: 74711.5368 | X37: 76396.9368
A38: Pondichery | B38: 2000 | C38: 2000 | D38: 2000 | I38: BHUJ | K38: 1263 | L38: 1263 | M38: 865
A39: Karnataka | B39: 1000 | C39: 1000 | D39: 1000 | I39: BOISAR | K39: 1263 | L39: 853 | M39: 1195 | O39: Silvassa | P39: CRDT. | Q39: BASIC | R39: =R11-55 -> 67313 | S39: =R39+500 -> 67813 | T39: =R39+3000 -> 70313 | U39: =R39+1500 -> 68813 | V39: =R39+300 -> 67613 | W39: =R39-1000 -> 66313 | X39: =R39+500 -> 67813
A40: Note: Above discounts would be applicable only on above pipe grades. | I40: DAMAN | K40: 731 | L40: 547 | M40: 748 | Q40: EX.DUTY 12.36% | R40: =SUM(R39*12.36%) -> 8319.8868 | S40: 8381.6868 | T40: 8690.6868 | U40: 8505.2868 | V40: 8356.9668 | W40: 8196.2868 | X40: 8381.6868
B41: ( prime , nonprime n off grades ). | I41: DEHRADUN | K41: 2913 | L41: 3033 | M41: 3013 | Q41: TRADE DISC. | R41: 0 | S41: 0 | T41: 0 | U41: 0 | V41: 0 | W41: 0 | X41: 0
I42: GOA | K42: 2848 | L42: 2749 | M42: 2873 | Q42: EX-GODOWN | R42: =R39+R40 -> 75632.8868 | S42: 76194.6868 | T42: 79003.6868 | U42: 77318.2868 | V42: 75969.9668 | W42: 74509.2868 | X42: 76194.6868
I43: GONDIA | K43: - | L43: 1869 | M43: 2039 | P43: CASH | Q43: CASH.DISC | R43: =R15 -> 500 | S43: =S15 -> 500 | T43: 500 | U43: 500 | V43: 500 | W43: 500 | X43: 500
A44: D.E. Prices for Ex Fact- Hazira , Baroda , Gandhar Complexes | I44: HALOL | K44: 409 | L44: 600 | M44: 505 | Q44: EX-GODOWN | R44: =R42-R43 -> 75132.8868 | S44: 75694.6868 | T44: 78503.6868 | U44: 76818.2868 | V44: 75469.9668 | W44: 74009.2868 | X44: 75694.6868
A45: Location | B45: Type | C45: 67.01 | I45: HARIDWAR | K45: 2813 | L45: 2962 | M45: 2942
C46: 67GER01 | D46: 57GER01 | E46: 57GMR01 | F46: 67.11 | G46: 67GER01 F | I46: JALGAON | K46: 1518 | L46: 1135 | M46: 1334 | O46: Hyderabad | P46: CRDT. | Q46: BASIC | R46: =R11+1457 -> 68825 | S46: =R46+500 -> 69325 | T46: =R46+3000 -> 71825 | U46: =R46+1500 -> 70325 | V46: =R46+300 -> 69125 | W46: =R46-1000 -> 67825 | X46: =R46+500 -> 69325
A47: EX WORKS HZ , BC & GC. | B47: EOU-CT3/AIL | C47: =B12-3500 -> 62500 | D47: =B12-2000 -> 64000 | E47: =B12-2000 -> 64000 | F47: =B12-3000 -> 63000 | G47: =B12-3200 -> 62800 | I47: RAVER | K47: 1518 | L47: 1135 | M47: 1427 | Q47: EX.DUTY 12.36% | R47: =SUM(R46*12.36%) -> 8506.77 | S47: 8568.57 | T47: 8877.57 | U47: 8692.17 | V47: 8543.85 | W47: 8383.17 | X47: 8568.57
I48: JAMMU | K48: 3713 | L48: 3363 | M48: 3811 | Q48: TRADE DISC. | R48: 0 | S48: 0 | T48: 0 | U48: 0 | V48: 0 | W48: 0 | X48: 0
I49: MUMBAI | K49: 1345 | L49: 1173 | M49: 1343 | Q49: EX-GODOWN | R49: =R46+R47 -> 77331.77 | S49: 77893.57 | T49: 80702.57 | U49: 79017.17 | V49: 77668.85 | W49: 76208.17 | X49: 77893.57
I50: NALGONDA | K50: 2956 | L50: 2433 | M50: 2581 | P50: CASH | Q50: CASH.DISC | R50: =R15 -> 500 | S50: =S15 -> 500 | T50: 500 | U50: 500 | V50: 500 | W50: 500 | X50: 500
I51: NASHIK | K51: 1421 | L51: 1029 | M51: 1314 | Q51: EX-GODOWN | R51: =R49-R50 -> 76831.77 | S51: 77393.57 | T51: 80202.57 | U51: 78517.17 | V51: 77168.85 | W51: 75708.17 | X51: 77393.57
I52: NAGPUR | K52: 2119 | L52: 1774 | M52: 1974
I53: PHALTAN | K53: - | L53: 1943 | M53: - | O53: Salem | P53: CRDT. | Q53: BASIC | R53: =R11+555 -> 67923 | S53: =R53+2500 -> 70423 | T53: =R53+5000 -> 72923 | U53: =R53+3500 -> 71423 | V53: =R53+2300 -> 70223 | W53: =R53-1000 -> 66923 | X53: =R53+2500 -> 70423
I54: SANGLI | K54: 2194 | L54: 1953 | M54: 2163 | Q54: EX.DUTY 12.36% | R54: =SUM(R53*12.36%) -> 8395.2828 | S54: 8704.2828 | T54: 9013.2828 | U54: 8827.8828 | V54: 8679.5628 | W54: 8271.6828 | X54: 8704.2828
I55: SATARA | K55: 2127 | L55: 1943 | M55: 2188 | Q55: TRADE DISC. | R55: =R15 -> 500 | S55: =S15 -> 500 | T55: 500 | U55: 500 | V55: 500 | W55: 500 | X55: 500
I56: SILVASSA | K56: 734 | L56: 548 | M56: 783 | Q56: EX-GODOWN | R56: =R53+R54 -> 76318.2828 | S56: 79127.2828 | T56: 81936.2828 | U56: 80250.8828 | V56: 78902.5628 | W56: 75194.6828 | X56: 79127.2828
I57: SOLAPUR | K57: 2187 | L57: 1908 | M57: 2172 | P57: CASH | Q57: CASH.DISC | R57: =R15 -> 500 | S57: =S15 -> 500 | T57: 500 | U57: 500 | V57: 500 | W57: 500 | X57: 500
I58: TALASARI | K58: 1213 | L58: 695 | M58: 1113 | Q58: EX-GODOWN | R58: =R56-R57 -> 75818.2828 | S58: 78627.2828 | T58: 81436.2828 | U58: 79750.8828 | V58: 78402.5628 | W58: 74694.6828 | X58: 78627.2828
I59: UMERGAON | K59: 738 | L59: 568 | M59: 701
I60: VASAI | K60: 1443 | L60: 1063 | M60: 1413 | O60: Dehradun | P60: CRDT. | Q60: BASIC | R60: =R11+2489 -> 69857 | S60: =R60+500 -> 70357 | T60: =R60+3000 -> 72857 | U60: =R60+1500 -> 71357 | V60: =R60+300 -> 70157 | W60: =R60-1000 -> 68857 | X60: =R60+500 -> 70357
I61: UDMALPET | K61: 3963 | L61: 4023 | M61: 3863 | Q61: EX.DUTY 12.36% | R61: =SUM(R60*12.36%) -> 8634.3252 | S61: 8696.1252 | T61: 9005.1252 | U61: 8819.7252 | V61: 8671.4052 | W61: 8510.7252 | X61: 8696.1252
Q62: TRADE DISC. | R62: 0 | S62: 0 | T62: 0 | U62: 0 | V62: 0 | W62: 0 | X62: 0
Q63: EX-GODOWN | R63: =R60+R61 -> 78491.3252 | S63: 79053.1252 | T63: 81862.1252 | U63: 80176.7252 | V63: 78828.4052 | W63: 77367.7252 | X63: 79053.1252
P64: CASH | Q64: CASH.DISC | R64: =R15 -> 500 | S64: =S15 -> 500 | T64: 500 | U64: 500 | V64: 500 | W64: 500 | X64: 500
Q65: EX-GODOWN | R65: =R63-R64 -> 77991.3252 | S65: 78553.1252 | T65: 81362.1252 | U65: 79676.7252 | V65: 78328.4052 | W65: 76867.7252 | X65: 78553.1252
A67: WISHING YOU EVERY SUCCESS AT ALL TIME. | O67: JAIPUR | P67: CRDT. | Q67: BASIC | R67: =R11+1071 -> 68439 | S67: =R67+500 -> 68939 | T67: =R67+3000 -> 71439 | U67: =R67+1500 -> 69939 | V67: =R67+300 -> 68739 | W67: =R67-1000 -> 67439 | X67: =R67+500 -> 68939
A68: Thanks & Regards,; | Q68: EX.DUTY 12.36% | R68: =SUM(R67*12.36%) -> 8459.0604 | S68: 8520.8604 | T68: 8829.8604 | U68: 8644.4604 | V68: 8496.1404 | W68: 8335.4604 | X68: 8520.8604
A69: Anil Mistry M-7738006668 | Q69: TRADE DISC. | R69: 0 | S69: 0 | T69: 0 | U69: 0 | V69: 0 | W69: 0 | X69: 0
A70: (Manager - Sales_ | Q70: EX-GODOWN | R70: =R67+R68 -> 76898.0604 | S70: 77459.8604 | T70: 80268.8604 | U70: 78583.4604 | V70: 77235.1404 | W70: 75774.4604 | X70: 77459.8604
A71: e-mail: anil_mistry@vipl.com | P71: CASH | Q71: CASH.DISC | R71: =R22 -> 500 | S71: =S22 -> 500 | T71: 500 | U71: 500 | V71: 500 | W71: 500 | X71: 500
Q72: EX-GODOWN | R72: =R70-R71 -> 76398.0604 | S72: 76959.8604 | T72: 79768.8604 | U72: 78083.4604 | V72: 76735.1404 | W72: 75274.4604 | X72: 76959.8604
